fUST/lending_fUST_20250523
["ID","MTS","AMOUNT","RATE_DAILY","PERIOD"]
[362100161,1747993843742,-500.0,0.00020679,2]
[362100163,1747993843752,-151.0,0.00020679,2]
[362100166,1747993843761,-155.34035397,0.00020707,2]
[362100167,1747993843771,-538.84076125,0.00020707,2]
[362100169,1747993843780,-151.0,0.00020707,2]
[362100172,1747993843791,-151.0,0.00020734,2]
[362100173,1747993843800,-279.29908043,0.00020762,2]
[362100175,1747993843810,-500.0,0.00020816,2]
[362100178,1747993843820,-151.0,0.00020816,2]
[362100179,1747993843829,-500.0,0.00020816,2]
[362100182,1747993843839,-500.0,0.00020843,2]
[362100184,1747993843848,-151.0,0.00020843,2]
[362100186,1747993843858,-500.0,0.00020843,2]
[362100187,1747993843868,-5189.21808847,0.00020853,10]
[362100244,1747993844443,-500.0,0.00020816,2]
[362100245,1747993844453,-500.0,0.00020843,2]
[362100246,1747993844462,-351.5434118,0.00020853,10]
[362100247,1747993844474,-4206.21136439,0.00020853,10]
[362100248,1747993844486,-519.83149545,0.00020853,10]
[362101009,1747994462743,522.279176,0.00013699,2]
[362101017,1747994988347,508.02630956,0.00026473,120]
[362101018,1747994991458,-338.43435853,0.00017154,2]
[362101019,1747994995295,-227.96385109,0.00017154,2]
[362101020,1747994996855,-152.0,0.00017154,2]
[362101021,1747994998343,-193.60574598,0.00017154,2]
[362101022,1747995000952,-180.81760979,0.00017154,2]
[362101026,1747995024127,-154.7466949,0.00017154,2]
[362101027,1747995027505,-288.09883264,0.00017154,2]
[362101028,1747995030112,-152.0,0.00017154,2]
[362101033,1747995032005,-1267.36140284,0.00017154,2]
[362101034,1747995032019,-1623.06856793,0.00017154,2]
[362101035,1747995032121,-421.9029363,0.00017154,2]
[362101036,1747995032131,-300.0,0.000175,2]
[362101037,1747995032141,-300.0,0.00017501,2]
[362101038,1747995032151,-300.0,0.00017501,2]
[362101039,1747995032161,-229.0,0.00017501,2]
[362101040,1747995032171,-1200.0,0.00017501,2]
[362101041,1747995032180,-300.0,0.00017502,2]
[362101042,1747995032191,-430.0,0.00017502,2]
[362101043,1747995032200,-430.0,0.00017502,2]
[362101044,1747995032210,-1083.62,0.00017502,2]
[362101045,1747995032220,-524.38,0.00017502,2]
[362101046,1747995032229,-430.0,0.00017502,2]
[362101047,1747995032240,-430.0,0.00017502,2]
[362101048,1747995032249,-430.0,0.00017502,2]
[362101049,1747995032258,-430.0,0.00017502,2]
[362101050,1747995032268,-1227.18,0.00017502,2]
[362101051,1747995032277,-453.07,0.00017502,2]
[362101052,1747995032287,-24900.0,0.00017503,2]
[362101053,1747995032297,-377.1205741,0.00017562,2]
[362101054,1747995032306,-430.0,0.00017776,2]
[362101055,1747995032315,-430.0,0.00017776,2]
[362101056,1747995032325,-1083.62,0.00017776,2]
[362101057,1747995032335,-524.38,0.00017776,2]
[362101058,1747995032344,-430.0,0.00017776,2]
[362101059,1747995032354,-294.27175415,0.00017776,2]
[362101060,1747995032363,-430.0,0.00017776,2]
[362101061,1747995032373,-430.0,0.00017776,2]
[362101062,1747995032384,-1227.18,0.00017776,2]
[362101063,1747995032395,-453.07,0.00017776,2]
[362101064,1747995032405,-430.0,0.0001805,2]
[362101065,1747995032415,-430.0,0.0001805,2]
[362101066,1747995032424,-1083.62,0.0001805,2]
[362101067,1747995032435,-524.38,0.0001805,2]
[362101068,1747995032445,-465.70909616,0.0001805,2]
[362101069,1747995032454,-430.0,0.0001805,2]
[362101070,1747995032465,-430.0,0.0001805,2]
[362101071,1747995032475,-1227.18,0.0001805,2]
[362101072,1747995032484,-453.07,0.0001805,2]
[362101073,1747995032494,-160.0,0.00018143,2]
[362101074,1747995032503,-314.57823366,0.00018143,2]
[362101075,1747995032512,-430.0,0.00018324,2]
[362101076,1747995032522,-430.0,0.00018324,2]
[362101077,1747995032532,-1083.62,0.00018324,2]
[362101078,1747995032541,-524.38,0.00018324,2]
[362101079,1747995032551,-430.0,0.00018324,2]
[362101080,1747995032561,-430.0,0.00018324,2]
[362101081,1747995032570,-1227.18,0.00018324,2]
[362101082,1747995032579,-453.07,0.00018324,2]
[362101083,1747995032589,-277.120958,0.00018454,2]
[362101084,1747995032598,-212.48480548,0.00018503,2]
[362101085,1747995032607,-160.0,0.00018503,2]
[362101086,1747995032617,-160.0,0.00018503,2]
[362101087,1747995032626,-7952.67450795,0.00018504,2]
[362101088,1747995032639,-825.1020984,0.00018504,2]
[362101089,1747995032674,-263.22628436,0.00018504,2]
[362101090,1747995033846,-177.14616519,0.00018504,2]
[362101091,1747995035529,-172.58301585,0.00018503,2]
[362101118,1747995037788,-18.284241,0.00018503,2]
[362101119,1747995037798,-500.0,0.00018503,2]
[362101120,1747995037809,-500.0,0.00018503,2]
[362101121,1747995037819,-153.98072892,0.00018503,2]
[362101122,1747995037829,-500.0,0.00018503,2]
[362101123,1747995037839,-500.0,0.00018503,2]
[362101124,1747995037849,-500.0,0.00018503,2]
[362101125,1747995037858,-500.0,0.00018503,2]
[362101126,1747995037869,-500.0,0.00018503,2]
[362101127,1747995037880,-546.430556,0.00018503,2]
[362101128,1747995037891,-500.0,0.00018503,2]
[362101129,1747995037900,-222.56008464,0.00018503,2]
[362101130,1747995037910,-3429.51241857,0.00018504,2]
[362101131,1747995037920,-160.0,0.00018504,2]
[362101132,1747995037930,-430.0,0.00018509,2]
[362101133,1747995037940,-430.0,0.00018509,2]
[362101134,1747995037951,-430.0,0.00018509,2]
[362101135,1747995037960,-430.0,0.00018509,2]
[362101136,1747995037970,-157.40855095,0.00018509,2]
[362101137,1747995037980,-430.0,0.00018509,2]
[362101138,1747995037989,-1148.32,0.00018509,2]
[362101139,1747995037999,-430.0,0.00018509,2]
[362101140,1747995038008,-430.0,0.00018509,2]
[362101141,1747995038019,-430.0,0.00018509,2]
[362101142,1747995038028,-430.0,0.00018509,2]
[362101143,1747995038038,-430.0,0.00018509,2]
[362101144,1747995038048,-298.39,0.00018509,2]
[362101145,1747995038058,-430.0,0.00018509,2]
[362101146,1747995038067,-430.0,0.00018509,2]
[362101147,1747995038078,-430.0,0.00018511,2]
[362101148,1747995038088,-430.0,0.00018511,2]
[362101149,1747995038097,-430.55,0.00018511,2]
[362101150,1747995038107,-430.0,0.00018511,2]
[362101151,1747995038117,-430.0,0.00018513,2]
[362101152,1747995038128,-430.0,0.00018513,2]
[362101153,1747995038138,-192.98190303,0.00018513,2]
[362101154,1747995038150,-430.0,0.00018513,2]
[362101155,1747995038160,-430.0,0.00018513,2]
[362101156,1747995038173,-430.0,0.00018513,2]
[362101157,1747995038183,-430.0,0.00018513,2]
[362101158,1747995038195,-430.0,0.00018513,2]
[362101159,1747995038206,-430.0,0.00018513,2]
[362101160,1747995038218,-430.0,0.00018513,2]
[362101161,1747995038228,-400.0,0.00018513,2]
[362101162,1747995038240,-474.78914695,0.00018513,2]
[362101163,1747995038251,-430.0,0.00018513,2]
[362101164,1747995038262,-4749.70748245,0.00018516,2]
[362101165,1747995038276,-430.0,0.00018598,2]
[362101166,1747995038288,-430.0,0.00018598,2]
[362101167,1747995038300,-1083.62,0.00018598,2]
[362101168,1747995038311,-524.38,0.00018598,2]
[362101169,1747995038326,-430.0,0.00018598,2]
[362101170,1747995038337,-430.0,0.00018598,2]
[362101171,1747995038349,-1227.18,0.00018598,2]
[362101172,1747995038361,-453.07,0.00018598,2]
[362101173,1747995038373,-430.0,0.00018783,2]
[362101174,1747995038385,-430.0,0.00018783,2]
[362101175,1747995038398,-430.0,0.00018783,2]
[362101176,1747995038408,-430.0,0.00018783,2]
[362101177,1747995038426,-430.0,0.00018783,2]
[362101178,1747995038437,-1148.32,0.00018783,2]
[362101179,1747995038447,-430.0,0.00018783,2]
[362101180,1747995038458,-276.57723153,0.00018783,2]
[362101181,1747995038469,-430.0,0.00018783,2]
[362101182,1747995038480,-430.0,0.00018783,2]
[362101183,1747995038489,-430.0,0.00018783,2]
[362101184,1747995038499,-430.0,0.00018783,2]
[362101185,1747995038509,-430.0,0.00018783,2]
[362101186,1747995038519,-444.36569421,0.00018785,2]
[362101187,1747995038530,-430.0,0.00018785,2]
[362101188,1747995038539,-430.55,0.00018785,2]
[362101189,1747995038549,-430.0,0.00018785,2]
[362101190,1747995038558,-430.0,0.00018787,2]
[362101191,1747995038568,-430.0,0.00018787,2]
[362101192,1747995038578,-430.0,0.00018787,2]
[362101193,1747995038587,-430.0,0.00018787,2]
[362101194,1747995038597,-430.0,0.00018787,2]
[362101195,1747995038607,-430.0,0.00018787,2]
[362101196,1747995038618,-430.0,0.00018787,2]
[362101197,1747995038628,-430.0,0.00018787,2]
[362101198,1747995038637,-430.0,0.00018787,2]
[362101199,1747995038647,-430.0,0.00018787,2]
[362101200,1747995038657,-552.18085302,0.00018817,2]
[362101201,1747995038669,-430.0,0.00018872,2]
[362101202,1747995038679,-430.0,0.00018872,2]
[362101203,1747995038689,-1083.62,0.00018872,2]
[362101204,1747995038699,-524.38,0.00018872,2]
[362101205,1747995038709,-430.0,0.00018872,2]
[362101206,1747995038718,-430.0,0.00018872,2]
[362101207,1747995038728,-1227.18,0.00018872,2]
[362101208,1747995038738,-453.07,0.00018872,2]
[362101209,1747995038748,-4162.75336409,0.000189,2]
[362101210,1747995038759,-430.0,0.00019057,2]
[362101211,1747995038768,-430.0,0.00019057,2]
[362101212,1747995038777,-430.0,0.00019057,2]
[362101213,1747995038787,-430.0,0.00019057,2]
[362101214,1747995038796,-430.0,0.00019057,2]
[362101215,1747995038806,-1148.32,0.00019057,2]
[362101216,1747995038815,-430.0,0.00019057,2]
[362101217,1747995038825,-430.0,0.00019057,2]
[362101218,1747995038834,-430.0,0.00019057,2]
[362101219,1747995038843,-430.0,0.00019057,2]
[362101220,1747995038853,-430.0,0.00019057,2]
[362101221,1747995038863,-430.0,0.00019057,2]
[362101222,1747995038873,-430.0,0.00019059,2]
[362101223,1747995038882,-430.55,0.00019059,2]
[362101224,1747995038892,-430.0,0.00019061,2]
[362101225,1747995038902,-430.0,0.00019061,2]
[362101226,1747995038912,-430.0,0.00019061,2]
[362101227,1747995038924,-430.0,0.00019061,2]
[362101228,1747995038934,-430.0,0.00019061,2]
[362101229,1747995038943,-430.0,0.00019061,2]
[362101230,1747995038953,-430.0,0.00019061,2]
[362101231,1747995038963,-430.0,0.00019061,2]
[362101232,1747995038973,-430.0,0.00019061,2]
[362101233,1747995038983,-430.0,0.00019061,2]
[362101234,1747995038993,-420.0,0.00019104,2]
[362101235,1747995039003,-420.0,0.00019105,2]
[362101236,1747995039012,-4162.75336392,0.00019107,2]
[362101237,1747995039022,-430.0,0.00019146,2]
[362101238,1747995039032,-430.0,0.00019146,2]
[362101239,1747995039041,-1083.62,0.00019146,2]
[362101240,1747995039051,-524.38,0.00019146,2]
[362101241,1747995039060,-430.0,0.00019146,2]
[362101242,1747995039070,-430.0,0.00019146,2]
[362101243,1747995039080,-1227.18,0.00019146,2]
[362101244,1747995039089,-453.07,0.00019146,2]
[362101245,1747995039100,-400.0,0.00019178,2]
[362101246,1747995039110,-500.0,0.00019178,2]
[362101247,1747995039122,-500.0,0.00019178,2]
[362101248,1747995039136,-500.0,0.00019178,2]
[362101249,1747995039150,-500.0,0.00019178,2]
[362101250,1747995039160,-500.0,0.00019178,2]
[362101251,1747995039173,-257.14646309,0.00019178,2]
[362101252,1747995039184,-500.0,0.00019178,2]
[362101253,1747995039195,-500.0,0.00019178,2]
[362101254,1747995039206,-500.0,0.00019178,2]
[362101255,1747995039215,-500.0,0.00019178,2]
[362101256,1747995039225,-500.0,0.00019178,2]
[362101257,1747995039235,-500.0,0.00019178,2]
[362101258,1747995039245,-500.0,0.00019178,2]
[362101259,1747995039254,-500.0,0.00019178,2]
[362101260,1747995039264,-500.0,0.00019178,2]
[362101261,1747995039273,-500.0,0.00019178,2]
[362101262,1747995039282,-500.0,0.00019178,2]
[362101263,1747995039291,-500.0,0.00019178,2]
[362101264,1747995039300,-500.0,0.00019178,2]
[362101265,1747995039310,-500.0,0.00019178,2]
[362101266,1747995039319,-500.0,0.00019178,2]
[362101267,1747995039328,-500.0,0.00019178,2]
[362101268,1747995039337,-645.59688555,0.00019178,2]
[362101269,1747995039347,-500.0,0.00019178,2]
[362101270,1747995039355,-210.914568,0.00019178,2]
[362101271,1747995039366,-4162.75336392,0.00019314,2]
[362101272,1747995039376,-430.0,0.00019331,2]
[362101273,1747995039387,-430.0,0.00019331,2]
[362101274,1747995039396,-430.0,0.00019331,2]
[362101276,1747995039406,-430.0,0.00019331,2]
[362101277,1747995039415,-430.0,0.00019331,2]
[362101278,1747995039426,-1148.32,0.00019331,2]
[362101279,1747995039434,-430.0,0.00019331,2]
[362101280,1747995039444,-430.0,0.00019331,2]
[362101281,1747995039455,-430.0,0.00019331,2]
[362101282,1747995039465,-430.0,0.00019331,2]
[362101283,1747995039475,-430.0,0.00019331,2]
[362101284,1747995039485,-430.0,0.00019331,2]
[362101285,1747995039494,-430.0,0.00019333,2]
[362101286,1747995039504,-430.55,0.00019333,2]
[362101287,1747995039513,-430.0,0.00019335,2]
[362101288,1747995039522,-430.0,0.00019335,2]
[362101289,1747995039532,-430.0,0.00019335,2]
[362101290,1747995039542,-430.0,0.00019335,2]
[362101291,1747995039552,-430.0,0.00019335,2]
[362101292,1747995039561,-430.0,0.00019335,2]
[362101293,1747995039570,-430.0,0.00019335,2]
[362101294,1747995039578,-430.0,0.00019335,2]
[362101295,1747995039587,-430.0,0.00019335,2]
[362101296,1747995039596,-430.0,0.00019335,2]
[362101297,1747995039605,-430.0,0.0001942,2]
[362101298,1747995039613,-430.0,0.0001942,2]
[362101299,1747995039622,-1083.62,0.0001942,2]
[362101300,1747995039631,-524.38,0.0001942,2]
[362101301,1747995039639,-430.0,0.0001942,2]
[362101302,1747995039647,-430.0,0.0001942,2]
[362101303,1747995039657,-1227.18,0.0001942,2]
[362101304,1747995039667,-453.07,0.0001942,2]
[362101305,1747995039676,-213.33990914,0.000195,2]
[362101306,1747995039686,-500.0,0.000195,2]
[362101307,1747995039695,-4162.75336392,0.00019521,2]
[362101308,1747995039705,-231.72992256,0.00019587,2]
[362101309,1747995039714,-161.407979,0.00019594,2]
[362101310,1747995039724,-430.0,0.00019605,2]
[362101311,1747995039734,-430.0,0.00019605,2]
[362101312,1747995039743,-430.0,0.00019605,2]
[362101313,1747995039754,-568.17713632,0.00019605,2]
[362101314,1747995039764,-430.0,0.00019605,2]
[362101315,1747995039903,-1148.32,0.00019605,2]
[362101316,1747995039916,-430.0,0.00019605,2]
[362101317,1747995039927,-430.0,0.00019605,2]
[362101318,1747995039938,-175.21708032,0.00019605,2]
[362101319,1747995039948,-430.0,0.00019605,2]
[362101320,1747995039958,-430.0,0.00019605,2]
[362101321,1747995039968,-430.0,0.00019607,2]
[362101322,1747995039978,-430.55,0.00019607,2]
[362101323,1747995039987,-285.64232923,0.00019609,2]
[362101324,1747995039997,-430.0,0.00019609,2]
[362101325,1747995040007,-430.0,0.00019609,2]
[362101326,1747995040017,-430.0,0.00019609,2]
[362101327,1747995040027,-430.0,0.00019609,2]
[362101328,1747995040036,-430.0,0.00019609,2]
[362101329,1747995040046,-430.0,0.00019609,2]
[362101331,1747995040055,-430.0,0.00019609,2]
[362101333,1747995040064,-323.6463288,0.00019609,2]
[362101335,1747995040073,-380.34343014,0.00019609,2]
[362101337,1747995040083,-161.407979,0.00019692,2]
[362101339,1747995040092,-430.0,0.00019694,2]
[362101341,1747995040101,-430.0,0.00019694,2]
[362101343,1747995040112,-1083.62,0.00019694,2]
[362101345,1747995040122,-524.38,0.00019694,2]
[362101347,1747995040132,-430.0,0.00019694,2]
[362101349,1747995040141,-430.0,0.00019694,2]
[362101351,1747995040151,-1227.18,0.00019694,2]
[362101353,1747995040162,-453.07,0.00019694,2]
[362101355,1747995040175,-833.9141116,0.00019697,2]
[362101357,1747995040185,-4162.75336392,0.00019728,2]
[362101359,1747995040195,-160.0,0.00019797,2]
[362101361,1747995040205,-894.64583333,0.00019797,2]
[362101363,1747995040216,-160.0,0.00019797,2]
[362101365,1747995040226,-160.0,0.00019797,2]
[362101367,1747995040237,-422.85710789,0.00019797,2]
[362101369,1747995040247,-297.21534645,0.00019874,2]
[362101371,1747995040257,-430.0,0.00019879,2]
[362101373,1747995040267,-430.0,0.00019879,2]
[362101375,1747995040277,-430.0,0.00019879,2]
[362101376,1747995040287,-430.0,0.00019879,2]
[362101378,1747995040297,-1148.32,0.00019879,2]
[362101379,1747995040306,-352.01052743,0.00019879,2]
[362101380,1747995040316,-430.0,0.00019879,2]
[362101381,1747995040326,-430.0,0.00019879,2]
[362101382,1747995040335,-430.0,0.00019879,2]
[362101383,1747995040345,-430.0,0.00019881,2]
[362101384,1747995040355,-430.55,0.00019881,2]
[362101385,1747995040366,-430.0,0.00019883,2]
[362101386,1747995040376,-350.93030125,0.00019883,2]
[362101387,1747995040388,-430.0,0.00019883,2]
[362101388,1747995040399,-430.0,0.00019883,2]
[362101389,1747995040409,-430.0,0.00019883,2]
[362101390,1747995040420,-432.74,0.00019883,2]
[362101391,1747995040430,-430.0,0.00019883,2]
[362101392,1747995040440,-500.0,0.00019888,2]
[362101393,1747995040449,-500.84592469,0.00019888,2]
[362101394,1747995040459,-500.0,0.00019888,2]
[362101395,1747995040471,-4162.75336392,0.00019934,2]
[362101396,1747995040480,-180.348333,0.00019958,2]
[362101397,1747995040490,-430.0,0.00019968,2]
[362101398,1747995040499,-430.0,0.00019968,2]
[362101399,1747995040509,-1083.62,0.00019968,2]
[362101400,1747995040518,-524.38,0.00019968,2]
[362101401,1747995040528,-430.0,0.00019968,2]
[362101402,1747995040538,-288.35218839,0.00019968,2]
[362101403,1747995040547,-1227.18,0.00019968,2]
[362101404,1747995040558,-453.07,0.00019968,2]
[362101405,1747995040568,-537.728493,0.00019997,2]
[362101406,1747995040577,-158.01,0.0002,2]
[362101407,1747995040587,-4162.75336392,0.00020141,2]
[362101408,1747995040595,-430.0,0.00020153,2]
[362101409,1747995040603,-430.0,0.00020153,2]
[362101410,1747995040612,-430.0,0.00020153,2]
[362101411,1747995040620,-430.0,0.00020153,2]
[362101412,1747995040628,-1148.32,0.00020153,2]
[362101413,1747995040636,-430.0,0.00020153,2]
[362101414,1747995040646,-430.0,0.00020153,2]
[362101415,1747995040655,-430.0,0.00020153,2]
[362101416,1747995040664,-430.0,0.00020155,2]
[362101417,1747995040674,-430.55,0.00020155,2]
[362101418,1747995040684,-430.0,0.00020157,2]
[362101419,1747995040694,-430.0,0.00020157,2]
[362101420,1747995040703,-430.0,0.00020157,2]
[362101421,1747995040713,-430.0,0.00020157,2]
[362101422,1747995040722,-522.279176,0.00020187,2]
[362101423,1747995040731,-430.0,0.00020242,2]
[362101424,1747995040740,-430.0,0.00020242,2]
[362101425,1747995040750,-1083.62,0.00020242,2]
[362101426,1747995040759,-524.38,0.00020242,2]
[362101427,1747995040768,-430.0,0.00020242,2]
[362101428,1747995040778,-1227.18,0.00020242,2]
[362101429,1747995040787,-453.07,0.00020242,2]
[362101430,1747995040798,-4162.75336392,0.00020348,3]
[362101431,1747995040807,-500.0,0.00020359,2]
[362101432,1747995040817,-430.0,0.00020427,2]
[362101433,1747995040826,-430.0,0.00020427,2]
[362101434,1747995040835,-430.0,0.00020427,2]
[362101435,1747995040844,-430.0,0.00020427,2]
[362101436,1747995040853,-1148.32,0.00020427,2]
[362101437,1747995040862,-430.0,0.00020427,2]
[362101438,1747995040872,-430.0,0.00020427,2]
[362101439,1747995040881,-430.0,0.00020427,2]
[362101440,1747995040890,-430.0,0.00020429,2]
[362101441,1747995040899,-430.55,0.00020429,2]
[362101442,1747995040909,-430.0,0.00020431,2]
[362101443,1747995040920,-430.0,0.00020431,2]
[362101444,1747995040930,-430.0,0.00020431,2]
[362101445,1747995040940,-430.0,0.00020431,2]
[362101446,1747995040950,-3000.0,0.000205,2]
[362101447,1747995040959,-3000.0,0.0002051,2]
[362101448,1747995040969,-430.0,0.00020516,2]
[362101449,1747995040978,-430.0,0.00020516,2]
[362101450,1747995040988,-1083.62,0.00020516,2]
[362101451,1747995040998,-524.38,0.00020516,2]
[362101452,1747995041008,-430.0,0.00020516,2]
[362101453,1747995041017,-1227.18,0.00020516,2]
[362101454,1747995041026,-453.07,0.00020516,2]
[362101455,1747995041036,-3000.0,0.0002052,2]
[362101456,1747995041046,-3000.0,0.0002053,2]
[362101457,1747995041057,-3000.0,0.0002054,2]
[362101458,1747995041067,-3000.0,0.0002055,2]
[362101459,1747995041076,-4162.75336392,0.00020555,3]
[362101460,1747995041086,-3000.0,0.0002056,2]
[362101461,1747995041096,-3000.0,0.0002057,2]
[362101462,1747995041105,-682.27,0.0002057,3]
[362101463,1747995041115,-3000.0,0.0002058,2]
[362101464,1747995041126,-511.73,0.0002058,3]
[362101465,1747995041136,-212.48480548,0.0002058,10]
[362101466,1747995041145,-12647.66147447,0.0002058,10]
[362101467,1747995041155,-3000.0,0.0002059,2]
[362101468,1747995041166,-3000.0,0.000206,2]
[362101469,1747995041176,-170.57,0.000206,3]
[362101470,1747995041186,-3000.0,0.0002061,2]
[362101471,1747995041196,-341.14,0.0002061,3]
[362101472,1747995041206,-212.48480548,0.0002061,3]
[362101473,1747995041216,-314.57823366,0.0002061,3]
[362101474,1747995041225,-160.0,0.0002061,3]
[362101475,1747995041235,-12647.66147447,0.0002061,3]
[362101476,1747995041245,-3000.0,0.0002062,2]
[362101477,1747995041254,-5318.719028,0.0002063,2]
[362101478,1747995041264,-231.72992256,0.0002065,2]
[362101479,1747995041273,-833.9141116,0.00020677,2]
[362101480,1747995041283,-430.0,0.00020701,2]
[362101481,1747995041292,-551.12049654,0.00020701,2]
[362101482,1747995041302,-1148.32,0.00020701,2]
[362101483,1747995041311,-430.0,0.00020701,2]
[362101484,1747995041321,-430.0,0.00020701,2]
[362101485,1747995041331,-430.0,0.00020701,2]
[362101486,1747995041340,-430.0,0.00020703,2]
[362101487,1747995041349,-430.55,0.00020703,2]
[362101488,1747995041360,-153.33523347,0.00020705,2]
[362101489,1747995041369,-430.0,0.00020705,2]
[362101490,1747995041379,-430.0,0.00020705,2]
[362101491,1747995041391,-4162.75336392,0.00020762,3]
[362101492,1747995041400,-500.0,0.00020789,2]
[362101493,1747995041409,-500.0,0.00020789,2]
[362101494,1747995041420,-500.0,0.00020789,2]
[362101495,1747995041430,-500.0,0.00020789,2]
[362101496,1747995041439,-500.0,0.00020789,2]
[362101497,1747995041449,-500.0,0.00020789,2]
[362101498,1747995041458,-345.91734669,0.00020789,2]
[362101499,1747995041469,-500.0,0.00020789,2]
[362101500,1747995041478,-500.0,0.00020789,2]
[362101501,1747995041488,-500.0,0.00020789,2]
[362101502,1747995041497,-500.0,0.00020789,2]
[362101503,1747995041507,-500.0,0.00020789,2]
[362101504,1747995041518,-500.0,0.00020789,2]
[362101505,1747995041527,-500.0,0.00020789,2]
[362101506,1747995041537,-483.82360575,0.00020789,2]
[362101507,1747995041547,-430.0,0.0002079,2]
[362101508,1747995041556,-430.0,0.0002079,2]
[362101509,1747995041566,-1083.62,0.0002079,2]
[362101510,1747995041575,-524.38,0.0002079,2]
[362101511,1747995041584,-430.0,0.0002079,2]
[362101512,1747995041594,-1227.18,0.0002079,2]
[362101513,1747995041603,-453.07,0.0002079,2]
[362101514,1747995041612,-587.0,0.00020855,2]
[362101515,1747995041621,-587.0,0.00020857,2]
[362101516,1747995041631,-4162.75336392,0.00020969,4]
[362101517,1747995041640,-232.02060622,0.00020975,2]
[362101518,1747995041650,-1148.32,0.00020975,2]
[362101519,1747995041659,-430.0,0.00020975,2]
[362101520,1747995041669,-430.0,0.00020975,2]
[362101521,1747995041679,-430.0,0.00020975,2]
[362101522,1747995041688,-430.0,0.00020976,2]
[362101523,1747995041698,-430.55,0.00020976,2]
[362101524,1747995041707,-430.0,0.00020979,2]
[362101525,1747995041717,-430.0,0.00020979,2]
[362101526,1747995041726,-707.0,0.00020988,2]
[362101527,1747995041735,-2233.0,0.00020988,2]
[362101528,1747995041745,-404.0,0.00020988,2]
[362101529,1747995041754,-404.0,0.00020988,2]
[362101530,1747995041763,-8999.97653471,0.00021,3]
[362101531,1747995041772,-3000.0,0.00021,2]
[362101532,1747995041782,-3000.0,0.0002101,2]
[362101533,1747995041791,-3000.0,0.0002102,2]
[362101534,1747995041800,-3000.0,0.0002103,2]
[362101535,1747995041810,-3000.0,0.0002104,2]
[362101536,1747995041820,-3000.0,0.0002105,2]
[362101537,1747995041830,-3000.0,0.0002106,2]
[362101538,1747995041840,-430.0,0.00021064,2]
[362101539,1747995041849,-430.0,0.00021064,2]
[362101540,1747995041858,-123.50490252,0.00021064,2]
[362101541,1747995041875,-960.11509748,0.00021064,2]
[362101542,1747995041885,-524.38,0.00021064,2]
[362101543,1747995041894,-430.0,0.00021064,2]
[362101544,1747995041904,-1096.39045567,0.00021064,2]
[362101545,1747995041916,-130.78954433,0.00021064,2]
[362101546,1747995041926,-453.07,0.00021064,2]
[362101547,1747995041935,-570.1314833,0.00021068,2]
[362101548,1747995041944,-570.1314833,0.00021068,2]
[362101549,1747995041954,-570.1314833,0.00021068,2]
[362101550,1747995041963,-570.1314833,0.00021068,2]
[362101551,1747995041973,-175.4077562,0.00021068,2]
[362101552,1747995041983,-3000.0,0.0002107,2]
[362101553,1747995041993,-3000.0,0.0002108,2]
[362101554,1747995042003,-3000.0,0.0002109,2]